Cogmind - Beta 15 @@@ ROGUE MODE // 2025.08.15 @ 20:09:41 Player: shapeshifter Result: Self-destructed Performance ------------- Evolutions (1) 500 Regions Visited (3) 600 Robots Destroyed (43) 215 Value Destroyed (908) 908 Prototype IDs (1) 20 Alien Tech Used (0) 0 Bonus (0) 0 TOTAL SCORE: 2243 Bonus ------- None Cogmind --------- Core Integrity 89/400 Matter 187/300 Energy 250/250 System Corruption 0% Temperature Cool (0) Movement Treading (160) Location -9/Storage Parts ------- > --- POWER (1) -------- Ion Engine > --- PROPULSION (3) --- Improved Treads Improved Treads Improved Treads > --- UTILITY (3) ------ High-capacity Storage Unit Weapon Shielding Hardened Light Armor Plating > --- WEAPON (2) ------- Shotgun Improved Assault Rifle > --- INVENTORY (20) --- Light Treads Improved Treads Wheel Wheel Large Storage Unit Targeting Computer ECM Suite Weapon Shielding Light Armor Plating Beam Rifle Advanced Beam Cannon Heavy Assault Rifle Grenade Launcher Mini Grenade Launcher Peak State ------------ > --- POWER ------------ Ion Engine > --- PROPULSION ------- Improved Treads Improved Treads Improved Treads > --- UTILITY ---------- High-capacity Storage Unit Improved Terrain Scanner Hardened Light Armor Plating > --- WEAPON ----------- Shotgun Improved Assault Rifle > --- INVENTORY -------- Improved Treads Wheel Wheel Large Storage Unit Targeting Computer Weapon Shielding Weapon Shielding Light Armor Plating [Rating: 18] Favorites ----------- Power Ion Engine Engine Ion Engine Propulsion Improved Treads Treads Improved Treads Utility High-capacity Storage Unit Device Seismic Detector Storage High-capacity Storage Unit Processor Visual Processing Unit Protection Hardened Light Armor Plating Weapon Light Assault Rifle Energy Gun Medium Laser Ballistic Gun Light Assault Rifle Launcher Grenade Launcher Build | -11 -10 -9 -9 ------- Run | Yrd Mat Mat Sto Slots Evolved 2 | . . 2 . Power . | . . . . Propulsion 1 | . . 1 . Utility 1 | . . 1 . Weapon . | . . . . Parts Attached 22 | 8 2 12 . Power 2 | 1 . 1 . Engine 2 | 1 . 1 . Core . | . . . . Reactor . | . . . . Propulsion 6 | 2 . 4 . Treads 6 | 2 . 4 . Leg . | . . . . Wheel . | . . . . Hover . | . . . . Flight . | . . . . Utility 8 | 2 2 4 . Device 2 | 1 . 1 . Storage 3 | 1 2 . . Processor 1 | . . 1 . Hackware . | . . . . Protection 2 | . . 2 . Artifact . | . . . . Weapon 6 | 3 . 3 . Energy Gun 1 | 1 . . . Energy Cannon . | . . . . Ballistic Gun 4 | 2 . 2 . Ballistic Cannon . | . . . . Launcher 1 | . . 1 . Special Weapon . | . . . . Impact Weapon . | . . . . Slashing Weapon . | . . . . Piercing Weapon . | . . . . Special Melee Weapon . | . . . . Unidentified Prototypes 1 | . . 1 . Parts Lost 3 | . . 3 . Power 1 | . . 1 . Propulsion . | . . . . Utility 1 | . . 1 . Weapon 1 | . . 1 . Highest Loss Streak 2 | . . 2 . To Critical Strikes . | . . . . Average Backups 7 | 3 4 7 10 Power . | . 1 . . Propulsion 2 | 1 2 2 3 Utility 3 | . 1 4 4 Weapon 1 | . . . 2 Tool/Special . | . . . . Unused Backups 11 | . . . 11 Power . | . . . . Propulsion 4 | . . . 4 Utility 4 | . . . 4 Weapon 3 | . . . 3 Tool/Special . | . . . . Average Slot Usage (%) 95 | . 100 90 100 Engine 11 | . 14 10 11 Treads 30 | . 28 30 33 Device 5 | . 14 7 . Storage 11 | . 14 11 11 Processor 1 | . . 2 . Protection 11 | . . 7 22 Ballistic Gun 21 | . 28 19 22 Peak Build Rating 18 | 7 7 18 18 Average Rating 12 | 5 7 12 16 On Entrance 7 | . 7 7 16 Naked Turns . | . . . . Heaviest Build 57 | 13 28 57 57 Greatest Support 69 | 40 40 69 69 Greatest Overweight (x) . | . . . . Average Overweight (x) . | . . . . Largest Inventory Capacity 20 | 8 20 20 20 Average Capacity 16 | 7 8 18 20 Most Carried 14 | 5 7 14 14 Average Carried 7 | 3 4 7 10 Final Capacity 20 | 8 15 20 20 Final Carried 14 | 4 5 8 14 Class Distribution -------------------- 100% | Mutant Dominant Class ---------------- Mutant | -10/Materials Mutant | -9/Materials Mutant | -9/Storage Resources | -11 -10 -9 -9 ----------- Run | Yrd Mat Mat Sto Matter Collected 779 | 239 . 208 332 Remotely . | . . . . Salvage Created 1283 | 86 . 627 570 Parts 97 | 6 . 45 46 Haulers Intercepted 3 | . . . 3 Recyclers Shooed . | . . . . Parts Field Recycled . | . . . . Retrieved Matter . | . . . . Parts Self-Destructed . | . . . . Prevented . | . . . . Kills | -11 -10 -9 -9 ------- Run | Yrd Mat Mat Sto Combat Hostiles Destroyed 34 | . . 22 12 Guns 32 | . . 20 12 AOE 2 | . . 2 . Classes Destroyed 8 | 2 . 5 1 Worker 1 | . . 1 . Tunneler 2 | 2 . . . Hauler 3 | . . . 3 Recycler 1 | 1 . . . Watcher 2 | . . 1 1 Swarmer 16 | . . 12 4 Grunt 11 | . . 6 5 Sentry 7 | . . 4 3 Best Kill Streak 8 | 1 . 6 8 Combat Bots Only 5 | . . 5 4 Max Kills in Single Turn 1 | 1 . 1 1 Gunslinging . | . . . . Exploded 1 | . . 1 . Melee . | . . . . Uniques/NPCs Destroyed . | . . . . Combat | -11 -10 -9 -9 -------- Run | Yrd Mat Mat Sto Hostile Shots Fired 211 | . . 166 45 Missed 65 | . . 52 13 Hits 146 | . . 114 32 Projectile 146 | . . 114 32 Critical Strikes 2 | . . 2 . Damage Taken 1565 | . . 1168 397 Core 311 | . . 243 68 Absorbed by Shields . | . . . . Redirected to Shielding 25 | . . 4 21 Core Remaining (%) 100 | 100 100 . . Volleys Fired 115 | 12 . 75 28 Largest 2 | 2 . 2 2 Hottest 46 | 40 . 43 46 Shots Fired 208 | 24 . 134 50 Gun 203 | 24 . 129 50 Cannon . | . . . . Launcher 5 | . . 5 . Special . | . . . . Kinetic 203 | 24 . 129 50 Thermal . | . . . . Explosive 5 | . . 5 . Electromagnetic . | . . . . Robot Hit Streak 12 | 11 . 12 12 Robot Miss Streak 6 | 1 . 6 6 Penetration Max . | . . . . Secondary Targets 4 | . . 4 . Max Gunslinging Chain 1 | . . 1 . Shots Hit Robots 138 | 20 . 86 32 Core Hits 68 | 7 . 40 21 Critical Kills . | . . . . Critical Parts Destroyed 1 | 1 . . . Critical Strikes 1 | 1 . . . Destroy 1 | 1 . . . Melee Attacks . | . . . . Impact . | . . . . Slashing . | . . . . Piercing . | . . . . Sneak Attacks . | . . . . Combat Hostiles . | . . . . Follow-up Attacks . | . . . . Damage Inflicted 1842 | 164 . 1066 612 Guns 1683 | 164 . 928 591 Cannons . | . . . . Explosions 138 | . . 138 . Melee . | . . . . Ramming 21 | . . . 21 Kinetic 1683 | 164 . 928 591 Thermal . | . . . . Explosive 138 | . . 138 . Electromagnetic . | . . . . Impact . | . . . . Slashing . | . . . . Piercing . | . . . . Highest Corruption . | . . . . Average Corruption . | . . . . Corruption Purged . | . . . . Corruption Blocked . | . . . . Overload Shots . | . . . . Overflow Damage . | . . . . Projectiles . | . . . . Explosions . | . . . . Melee . | . . . . Knockbacks . | . . . . Impact . | . . . . Kinetic . | . . . . Secondary . | . . . . Self-Inflicted Damage . | . . . . Shots . | . . . . Rammed 2 | . . . 2 Targets Rammed 2 | . . . 2 Kicked . | . . . . Crushed . | . . . . Highest Temperature 30 | . . 30 9 Average Temperature 5 | . . 6 4 Received Heat Transfer 363 | . . 252 111 Siege Activations . | . . . . Martial Activations . | . . . . Shielding Activations . | . . . . Robots Disrupted . | . . . . Combat Hostiles . | . . . . Robots Corrupted . | . . . . Combat Hostiles . | . . . . Parts Fried . | . . . . Impact Corruptions . | . . . . Robots Melted . | . . . . Combat Hostiles . | . . . . Parts Melted . | . . . . Heat Transferred . | . . . . Parts Sabotaged . | . . . . Parts Stolen . | . . . . Parts Stripped . | . . . . Power Chain Reactions . | . . . . Alert | -11 -10 -9 -9 ------- Run | Yrd Mat Mat Sto Maximum Alert Level 1 | . . 1 1 Low Security (%) 63 | 100 100 42 68 Level 1 36 | . . 57 31 Level 2 . | . . . . Level 3 . | . . . . Level 4 . | . . . . Level 5 . | . . . . High Security . | . . . . Max Security . | . . . . Peak Influence 329 | 5 5 320 329 Initial 128 | . . . 128 Average 144 | . . 187 189 Influence Increases 959 | 15 5 581 358 Destroy 0b10 Robot/C 680 | . . 440 240 Destroy 0b10 Robot/NC 45 | 15 . 10 20 Destroy Leader 160 | . . 92 68 Successful Hack 24 | . 5 5 14 Destroy Structure 20 | . . 19 1 Partial Spotted 30 | . . 15 15 Influence Decreases 643 | 15 5 277 346 Entered New Map 176 | . . . 176 Time Decay 437 | 15 5 247 170 Lost Part 30 | . . 30 . Squads Dispatched 5 | . . 3 2 Investigation 2 | . . 1 1 Extermination . | . . . . Reinforcement 3 | . . 2 1 Assault . | . . . . Garrison . | . . . . Intercept . | . . . . Searches Triggered . | . . . . Construction Impeded . | . . . . Haulers Reinforced . | . . . . Active Scanning Responses . | . . . . Cargo Convoy Interrupts . | . . . . Stealth | -11 -10 -9 -9 --------- Run | Yrd Mat Mat Sto Distress Signals 4 | . . 2 2 Communications Jammed . | . . . . Distress Signals . | . . . . Times Spotted 43 | . . 28 15 Peak Tracking Total 7 | . . 7 4 Tactical Retreats . | . . . . Traps | -11 -10 -9 -9 ------- Run | Yrd Mat Mat Sto Traps Triggered . | . . . . Indirectly . | . . . . Trap Hack Attempts . | . . . . Triggered . | . . . . Disarmed . | . . . . Reprogrammed . | . . . . Reused . | . . . . Traps Extracted . | . . . . Installed . | . . . . Triggered . | . . . . Machines | -11 -10 -9 -9 ---------- Run | Yrd Mat Mat Sto Machines Disabled . | . . . . Max in Single Turn . | . . . . Garrison Access 1 | . . . 1 Machines Repaired . | . . . . Machines Dismantled . | . . . . Machines Sabotaged . | . . . . Overloaded Fab Kills . | . . . . Hacking | -11 -10 -9 -9 --------- Run | Yrd Mat Mat Sto Machines Accessed 8 | . 2 3 3 Terminals 6 | . 1 3 2 Fabricators . | . . . . Repair Stations . | . . . . Recycling Units 1 | . 1 . . Scanalyzers . | . . . . Garrison Access 1 | . . . 1 Total Hacks 26 | . 9 8 9 Successful 11 | . 4 4 3 Failed 15 | . 5 4 6 Catastrophic 4 | . 2 1 1 Database Lockouts . | . . . . Manual 17 | . 5 6 6 Terminals 21 | . 5 8 8 Fabricators . | . . . . Repair Stations . | . . . . Recycling Units 4 | . 4 . . Scanalyzers . | . . . . Garrison Access 1 | . . . 1 Terminal Hacks 1 | . . 1 . Robot Analysis 1 | . . 1 . Fabricator Hacks . | . . . . Repair Station Hacks . | . . . . Recycling Unit Hacks 3 | . 3 . . Report Inventory 1 | . 1 . . Retrieve Matter 1 | . 1 . . Retrieve Components 1 | . 1 . . Scanalyzer . | . . . . Garrison Access Hacks 1 | . . . 1 Seal Access 1 | . . . 1 Unauthorized Hacks 6 | . 1 3 2 Terminals 6 | . 1 3 2 Botnet 6 | . 1 3 2 Fabricators . | . . . . Repair Stations . | . . . . Recycling Units . | . . . . Scanalyzers . | . . . . Garrison Access . | . . . . Data Cores Recovered . | . . . . Used . | . . . . Hacking Detections 7 | . 2 3 2 Full Trace Events 2 | . . 1 1 Feedback Events . | . . . . Feedback Blocked . | . . . . Robot Schematics Acquired . | . . . . Robots Built . | . . . . Authchips . | . . . . Time . | . . . . Total Robot Build Rating . | . . . . Part Schematics Acquired . | . . . . Parts Built . | . . . . Authchips . | . . . . Time . | . . . . Total Part Build Rating . | . . . . Parts Repaired . | . . . . Time . | . . . . Parts Recycled . | . . . . Recycled Matter . | . . . . Retrieved Matter . | . . . . Retrieved Components 3 | . 3 . . Parts Scanalyzed . | . . . . Part Schematics Acquired . | . . . . Parts Damaged . | . . . . Bothacking | -11 -10 -9 -9 ------------ Run | Yrd Mat Mat Sto Used RIF Installer . | . . . . Robots Hacked . | . . . . Non-combat . | . . . . Combat . | . . . . Robot Hacks Applied . | . . . . Relay Couplers Released . | . . . . Fabnet Peak Effective % . | . . . . Robots Rewired . | . . . . Allies Hacked . | . . . . Hacks Repelled . | . . . . Allies | -11 -10 -9 -9 -------- Run | Yrd Mat Mat Sto Total Allies . | . . . . Largest Group . | . . . . Highest-Rated Group . | . . . . Highest-Rated Ally . | . . . . Total Orders . | . . . . Ally Attacks . | . . . . Total Damage . | . . . . Kills . | . . . . Allies Corrupted . | . . . . Allies Melted . | . . . . Intel | -11 -10 -9 -9 ------- Run | Yrd Mat Mat Sto Active Infowar (turns) 525 | 4 150 371 . Optics 149 | . . 149 . Terrain 31 | . . 31 . Seismic 494 | 4 150 340 . Robot Analysis Total 1 | . . 1 . Derelict Logs Recovered . | . . . . Drone Launches . | . . . . Drone Recoveries . | . . . . Exploration | -11 -10 -9 -9 ------------- Run | Yrd Mat Mat Sto Turns Passed 1190 | 132 150 562 346 Spaces Moved 489 | 59 89 197 144 Core 11 | 11 . . . Treads 478 | 48 89 197 144 Legs . | . . . . Wheels . | . . . . Hover . | . . . . Flight . | . . . . Fastest Speed 50 | 50 160 160 160 Average Speed 157 | 139 160 160 160 Slowest Speed 160 | 160 160 160 160 Overloaded Moves . | . . . . Propulsion Burnouts . | . . . . Robots Hopped . | . . . . Potential Cave-ins . | . . . . Cave-ins Triggered . | . . . . Exploration Rate (%) 24 | 5 27 35 32 Regions Visited 3 Branch Regions 1 Pre-discovered Areas . | . . . . Known Exits Taken . | . . . . Unknown Exits Taken 3 | 1 1 1 . Scrap Searched . | . . . . Spaces Dug . | . . . . Terrain Destroyed 24 | . . 24 . Melee . | . . . . Projectile . | . . . . AOE 24 | . . 24 . Terrain Rammed . | . . . . Walls Destroyed . | . . . . Machines Disabled . | . . . . Actions | -11 -10 -9 -9 --------- Run | Yrd Mat Mat Sto Total 718 | 89 96 326 207 Wait 49 | . . 23 26 Move 486 | 58 88 196 144 Hop . | . . . . Pick Up 33 | 10 3 14 6 Fast Attach 2 | 2 . . . Attach 11 | 5 . 6 . Detach . | . . . . Swap 12 | 1 3 7 1 Drop 8 | 1 2 5 . Fire 115 | 12 . 75 28 Melee . | . . . . Ram . | . . . . Kick . | . . . . Crush 2 | . . . 2 Escape Stasis . | . . . . Rewire . | . . . . Trap . | . . . . Miscellaneous . | . . . . Route ------- -11/Scrapyard -10/Materials -9/Materials -9/Storage History --------- Turn | Location | Event 9 | -11/Scrapyard | Discovered new exit (range 16) 133 | -11/Scrapyard | Entered Materials 243 | -10/Materials | Discovered new exit (range 15) 283 | -10/Materials | Entered another Materials area 283 | -9/Materials | Evolved 2 slots: Propulsion x1, Utility x1 316 | -9/Materials | Build established: Mutant 642 | -9/Materials | Core integrity fell below 50% 798 | -9/Materials | Discovered new exit (range 13) 845 | -9/Materials | Entered Storage 1191 | -9/Storage | Self-destructed Last Messages --------------- 01153_ K-01 Serf collects debris. 01156_ R-06 Scavenger collects Flight Unit. 01157_ K-01 Serf collects debris. 01169_ R-06 Scavenger collects Lgt. Ion Engine. 01172_ K-01 Serf collects debris. 01173_ R-06 Scavenger collects Flight Unit. 01180_ K-01 Serf cleans the Terminal. 01180_ R-06 Scavenger collects Lgt. Assault Rifle. 01183_ R-06 Scavenger collects Sml. Storage Unit. 01183_ A-02 Transporter destroyed. 01184_ K-01 Serf sends out distress signal. 01185_ K-01 Serf collects debris. 01186_ Acquired 58 matter. 01187_ R-06 Scavenger collects Med. Storage Unit. 01189_ K-01 Serf collects debris. 01190_ Acquired Prototype Energy Cannon. 01190_ R-06 Scavenger collects Wheel. Map ----- +----------------------------------------------------+ | ?????????????????????????????????????????????????? | | ?????????????????????????????????????????????????? | | ?????????????????????????????????????????????????? | | ?????????????????????????????????????????????????? | | ?????????????????????????????????????????????????? | | ?????????????????????????????????????????????????? | | ?????????????????????????????????????????????????? | | ?????????????????????????????????????????????????? | | ?????????????????????????????????????????????????? | | ?????????????????????????????????????????????????? | | ???????????????????????? ??????????????????????? | | ???????????????????????# ??????????????????????? | | ???????????????????????# ??????????????????????? | | ???????????????????????# ga#?????????????????????? | | ??????????????????????? #?????????????????????? | | ???????????????????????# +?????????????????????? | | ???????????????????????# a#?????????????????????? | | ???????????????????????# #?????????????????????? | | ???????????????????????# #?????????????????????? | | ???????????????????????# #?????????????????????? | | ???????????????????????# #?????????????????????? | | ???????????????????????# ##????????????????????? | | ???????????????????????# "#????????????????????? | | ???????????????????????#r!kT#????????????????????? | | ???????????????????????# ]*"#????????????????????? | | ???????????????????????#[@ #?????????????????????? | | ???????????????????????# ]]########??????????????? | | ??????????????????###### ! #??????????? | | ??????????????????#!!"=#% ########??????????????? | | ??????????????????#!!%=# a#?????????????????????? | | ??????????????????#!["%+ =#?????????????????????? | | ??????????????????####T# #?????????????????????? | | ?????????????????????###%k=#?????????????????????? | | ????????????????#??????#r =#?????????????????????? | | ?????????????#### ######u #?????????????????????? | | ?????????????# # !=#?????????????????????? | | ????????????????"" """ # #?????????????????????? | | ????????????????"" """ # #?????????????????????? | | ????????????????"" """ + #?????????????????????? | | ?????????????# # #?????????????????????? | | ?????????????# #k #?????????????????????? | | ?????????????# # #?????????????????????? | | ##???????????# # #?????????????????????? | | #???????????##" ""##### % #?????????????????????? | | "#?###????###?#"R""????# #########?????????????? | | "### """" #?#"""?????#[ =# """ #?????????????? | | # """" ###????????#%[%# """ #?????????????? | | "" # """" """????????#=%=# """ #?????????????? | | "" # """" R?????????#=!=+ #?????????????? | | "" # "??????????#= # #?????????????? | +----------------------------------------------------+ Best States ------------- Heat Dissipation 28 Energy Generation 10 Energy Capacity 250 Matter Stores 237 Matter Capacity 300 Sight Range 18 Terrain Scan Range 16 Terrain Scan Density 10 Armor Coverage 150 Weapon Shielding 33 Evasion (%) 50 Recoil Reduction 3 Item Schematics ----------------- None Robot Schematics ------------------ None Fabricated ------------ Nothing Repaired ---------- Nothing Alien Tech Used ----------------- None Achievements -------------- None Challenges ------------ None Game ------ Seed DeflectorPulseAccelerator Manual? 0 Play Time 00:10:35 Cumulative 147.3 hours Start 2025.08.15 @ 19:56:25 End 2025.08.15 @ 20:09:41 Sessions 1 Manual Loads 0 Difficulty Rogue Special Mode None Game No. 253 Rogue 253 Adventurer 0 Explorer 0 Win Type - Total 2 Types 1/0/1/0/0/0/0/0/0/0 Lore% 76 Gallery% 71 Achievement% 51 Wizard Run 0 Options --------- Layout 1 ASCII 0 Keyboard 0 Movement Mouse Keybinds 0 Fullscreen 1 Font 24/Smallcaps Map View 50x35 Zoom Use 0% Tactical HUD 1 Map Filters NONE Filters NONE Steam 1 RUN: 6b489472-fdd1-49f2-beca-aa9aef86b8b3